[Event "Oceania Zonal Open 2023"]
[Site "Melbourne"]
[Date "2023.01.24"]
[Round "2.12"]
[White "Jager, Jesse"]
[Black "Narenthran, Tharmaratnam"]
[Result "1-0"]
[ECO "E01"]
[WhiteElo "2132"]
[BlackElo "1771"]
[Annotator "TA"]
[PlyCount "125"]
[EventDate "2023.01.09"]
[EventType "swiss"]
[EventCountry "AUS"]
[SourceTitle "playchess.com"]
[Source "ChessBase"]
[SourceQuality "1"]
[TimeControl "5400+30"]

{[%evp 14,125,18,23,67,52,77,78,72,75,82,76,76,72,107,48,51,34,35,22,52,25,32,-18,14,10,6,9,16,14,60,64,87,86,88,96,90,93,102,87,92,88,91,68,88,77,76,22,25,22,22,25,38,37,76,85,128,125,125,112,127,0,0,0,0,0,0,-15,6,4,8,0,0,0,0,0,0,0,0,-3,0,0,0,0,0,-52,-50,-49,-47,-67,-20,-54,-17,-62,-62,-72,-27,-82,-80,-89,-60,-54,-13,-13,0,0,0,0,0,0,0,0,0,-102]} 1. d4 {[%emt 0:00:11]} d5 {[%emt 0:00:20]} 2. c4 {[%emt 0:00:06]} c6 {[%emt 0:00:08]} 3. Nf3 {[%emt 0:00:06]} Nf6 {[%emt 0:00:13]} 4. Nc3 {[%emt 0:00:04]} e6 {[%emt 0:00:44]} 5. g3 {[%emt 0:00:10]} Nbd7 {[%emt 0:00:22]} 6. Bg2 {[%emt 0:00:05]} Bd6 {[%emt 0:01:08]} 7. O-O {[%emt 0:00:10]} O-O {[%emt 0:00:53]} 8. Nd2 {[%emt 0:00:08]} a6 {[%emt 0:04:20] E01: Catalan: Early deviations.} 9. e4 {[%emt 0:00:23][%cal Rc4d5]} dxe4 {[%emt 0:00:07]} 10. Ndxe4 {[%emt 0:00:05]} Nxe4 {[%emt 0:00:07] White is better.} 11. Nxe4 {[%emt 0:00:06]} Be7 {[%emt 0:00:59]} 12. Bf4 {[%emt 0:01:05]} Nf6 {[%emt 0:00:29]} 13. Nc3 {[%emt 0:00:08] White is more active.} Bd6 {[%emt 0:00:16]} 14. Be3 {[%emt 0:00:47]} (14. Be5 $16) 14... e5 $14 {[%emt 0:03:49] [#]} 15. dxe5 $146 {[%emt 0:01:21]} ({Predecessor:} 15. d5 c5 16. Na4 Qc7 17. b4 b6 18. Rb1 Bf5 19. Rc1 Rab8 20. b5 axb5 21. cxb5 {½-½ Ludvigsen,F (2085)-Djordjevic,G (2111) SRB Central-ch op-A 8th 2015 (8)}) 15... Bxe5 {[%emt 0:00:01]} 16. Qc2 {[%emt 0:00:24]} Bg4 {[%emt 0:00:40]} 17. Na4 {[%emt 0:11:46]} (17. h3 $5 {[%cal Rh3g4]} Be6 18. Na4 $14) 17... Re8 {[%emt 0:03:32]} 18. Qb3 {[%emt 0:05:34]} (18. h3 $14 Bh5 19. Rfe1) 18... Qc7 {[%emt 0:04:59]} (18... b5 $5 {[%cal Rb5a4]} 19. Nb6 Rb8 $11) 19. Bb6 {[%emt 0:01:29]} Qc8 {[%emt 0:01:59]} 20. Rfe1 {[%emt 0:03:41]} Bh3 {[%emt 0:03:53]} 21. Rad1 {[%emt 0:06:09][%cal Oe1e5]} (21. f4 {simplifies} Bd6 22. Rxe8+ Nxe8 23. Re1) 21... Bxg2 {[%emt 0:00:48]} (21... Qf5 $11 {is more appropriate.}) 22. Kxg2 {[%emt 0:05:22]} Qg4 {[%emt 0:02:30]} 23. h3 {[%emt 0:07:28]} Qg6 {[%emt 0:02:58]} 24. Qd3 {[%emt 0:00:23]} Qxd3 {[%emt 0:06:14]} 25. Rxd3 {[%emt 0:00:54]} Rac8 {[%emt 0:00:22]} 26. b3 {[%emt 0:02:00]} Bc7 {[%emt 0:06:00]} 27. Rxe8+ {[%emt 0:04:05]} Nxe8 {[%emt 0:00:09]} 28. Bxc7 {[%emt 0:02:31]} Rxc7 $16 {[%emt 0:02:13][%mdl 4096] Endgame KRN-KRN} 29. Rd8 {[%emt 0:03:36][%cal Rd8e8]} Kf8 {[%emt 0:00:06]} 30. Rd2 {[%emt 0:05:07]} (30. Nc5 $16) 30... Ke7 $11 {[%emt 0:01:47]} 31. Nc5 {[%emt 0:02:12]} a5 {[%emt 0:02:28]} 32. Na4 {[%emt 0:04:45]} Nf6 {[%emt 0:02:54]} 33. Re2+ {[%emt 0:00:50]} Kd8 {[%emt 0:01:20]} 34. Re5 {[%emt 0:04:42]} Rd7 {[%emt 0:03:55]} 35. Rxa5 {[%emt 0:00:25]} Rd2 {[%emt 0:00:11] [#]} 36. Ra8+ $1 {[%emt 0:00:33]} Kc7 {[%emt 0:02:11][%cal Of6e4]} 37. Kf3 {[%emt 0:01:27] Prevents Ne4.} (37. Rf8 $16) 37... Nd7 $1 {[%emt 0:03:10][%cal Ob7b5]} ({Resist} 37... Rxa2 38. Rf8 $16) 38. Re8 {[%emt 0:04:54]} Rxa2 {[%emt 0:03:43]} 39. c5 {[%emt 0:03:51]} Ra3 {[%emt 0:05:32]} 40. Re3 {[%emt 0:00:46]} (40. Ke2 $5 {[%cal Re8e7]}) 40... b6 {[%emt 0:07:38]} 41. cxb6+ {[%emt 0:02:57]} Nxb6 {[%emt 0:00:09]} 42. Nc3 {[%emt 0:00:47]} Kd7 {[%emt 0:05:16]} 43. Rd3+ {[%emt 0:00:52]} Ke7 {[%emt 0:01:01]} 44. Nb1 {[%emt 0:00:24]} Ra7 {[%emt 0:00:51]} 45. Nd2 {[%emt 0:00:36]} Nd5 {[%emt 0:01:46]} 46. Nc4 {[%emt 0:00:45]} f6 {[%emt 0:00:23][%cal Bf7f6,Bf6f5][%mdl 32]} 47. h4 {[%emt 0:00:53][%cal Bh3h4,Bh4h5][%mdl 32]} h6 {[%emt 0:00:27]} 48. h5 {[%emt 0:00:26]} Ra1 {[%emt 0:01:28]} 49. Nd2 {[%emt 0:01:50]} ({White should try} 49. Rd4 $11) 49... Rh1 $1 $15 {[%emt 0:03:51]} 50. Kg4 {[%emt 0:01:03]} Ke6 $1 {[%emt 0:01:45]} 51. Nc4 {[%emt 0:02:10]} f5+ {[%emt 0:00:48]} 52. Kf3 {[%emt 0:00:07]} Rxh5 {[%emt 0:00:48]} 53. Rd1 {[%emt 0:00:20] [#] Repels Rh1} f4 $1 {[%emt 0:01:25]} 54. Re1+ {[%emt 0:00:28]} Kd7 {[%emt 0:01:08]} 55. Ra1 {[%emt 0:00:34]} (55. gxf4 $11 {keeps the balance.} Rh3+ 56. Ke4) 55... fxg3 $17 {[%emt 0:00:35]} 56. fxg3 {[%emt 0:00:14]} Nc7 {[%emt 0:02:22]} 57. Rd1+ {[%emt 0:00:40]} Kc8 {[%emt 0:01:14]} 58. Rd6 {[%emt 0:01:40] The position is equal.} Kb7 {[%emt 0:01:12]} 59. Rd7 {[%emt 0:00:56]} Rg5 {[%emt 0:01:56]} 60. Nd6+ {[%emt 0:00:24]} Kb6 {[%emt 0:00:28]} 61. Nc4+ {[%emt 0:01:16]} Kb7 {[%emt 0:00:13]} 62. Nd6+ {[%emt 0:00:07]} Kb6 {[%emt 0:00:01]} 63. Ke4 {[%emt 0:00:00][%mdl 32768] Weighted Error Value: White=0.13 (very precise) /Black=0.10 (very precise) . Sensor Board Error (Ke4/e5)?} (63. Nc4+ $11 Kb7) 1-0

[Event "Oceania Zonal Open 2023"]
[Site "Melbourne"]
[Date "2023.01.24"]
[Round "2.12"]
[White "Rozuwiecka, Anna"]
[Black "McGowan, Cameron"]
[Result "0-1"]
[ECO "A45"]
[WhiteElo "1798"]
[BlackElo "2175"]
[Annotator "TA"]
[PlyCount "62"]
[EventDate "2023.01.09"]
[EventType "swiss"]
[EventCountry "AUS"]
[SourceTitle "playchess.com"]
[Source "ChessBase"]
[SourceQuality "1"]
[TimeControl "5400+30"]

{[%evp 16,61,13,8,22,12,16,-27,-20,-54,-56,-52,-53,-54,-44,-50,-47,-46,-41,-94,-87,-844,-839,-847,-843,-839,-829,-878,-945,-943,-893,-930,-912,-1037,-991,-3250,-3204,-29992,-29993,-29993,-29991,-29996,-29997,-29997,-29998,-29998,-29999,-29999]} 1. d4 {[%emt 0:00:02]} Nf6 {[%emt 0:02:30]} 2. Bg5 {[%emt 0:00:04]} Ne4 {[%emt 0:01:13]} 3. Bf4 {[%emt 0:00:06]} c5 {[%emt 0:00:04]} 4. f3 {[%emt 0:00:10]} Qa5+ {[%emt 0:01:33]} 5. c3 {[%emt 0:00:23][%cal Bc2c3,Bc3c4,Bc4d5][%mdl 32]} Nf6 {[%emt 0:00:08]} 6. d5 {[%emt 0:00:18]} Qb6 {[%emt 0:00:45]} 7. Bc1 {[%emt 0:01:42]} e6 {[%emt 0:00:48]} 8. c4 {[%emt 0:02:47]} exd5 {[%emt 0:03:47]} 9. cxd5 {[%emt 0:00:07]} c4 {[%emt 0:00:01] A45: Trompowsky Attack.} 10. Nc3 {[%emt 0:04:01] White wants to play e4.} Bc5 {[%emt 0:02:03] [#] ...Bf2+ is the strong threat.} 11. Nh3 {[%emt 0:05:03] Prevents Bf2+.} d6 {[%emt 0:03:02] ...Bxh3 would be deadly. Black has an edge.} 12. Na4 {[%emt 0:01:36]} Qa5+ {[%emt 0:02:41]} 13. Bd2 {[%emt 0:01:37]} Bb4 {[%emt 0:00:47] Strongly threatening ...Bxd2+.} 14. Nc3 {[%emt 0:01:03]} Bxh3 $1 {[%emt 0:14:43]} 15. gxh3 {[%emt 0:00:21] [#]} Qc5 $146 {[%emt 0:02:03][%cal Oe8g8]} ({Predecessor:} 15... Na6 16. Rg1 O-O 17. a3 Bc5 18. Ne4 Nxe4 19. fxe4 Qb6 20. e3 Bxe3 21. Rg2 Rfe8 22. Bc3 Bh6 23. Qg4 Qe3+ 24. Be2 Rxe4 25. Qh5 Nc5 26. Bd2 Nd3+ 27. Kd1 Qxd2# {0-1 Todorovic,B (2222)-Shahaliyev,I (2386) Titled Tuesday intern op 05th Apr Early blitz 2022 (1)}) 16. e4 {[%emt 0:03:42]} Nbd7 {[%emt 0:04:48]} 17. Qa4 {[%emt 0:02:57]} (17. Qe2 $15) 17... b5 $40 {[%emt 0:10:13][%mdl 128] Black wants a kill.} (17... O-O {simplifies} 18. Qc2 b5 19. a3 Bxc3 20. Bxc3 Rae8) 18. Nxb5 {[%emt 0:01:28][%mdl 8192]} (18. Qc2 $17) 18... Qe3+ $19 {[%emt 0:06:27]} 19. Be2 {[%emt 0:01:08]} Qxd2+ {[%emt 0:00:15]} 20. Kf1 {[%emt 0:00:23]} O-O {[%emt 0:01:45]} 21. a3 {[%emt 0:08:50]} Bc5 {[%emt 0:03:06]} (21... Qxb2 22. axb4 Nxe4 23. fxe4 $19) 22. Qxc4 {[%emt 0:00:56]} Qe3 {[%emt 0:05:58][%csl Gc5][%cal Re3f2]} 23. Ke1 {[%emt 0:00:00]} a6 {[%emt 0:02:17]} 24. Nc7 {[%emt 0:01:36]} Rac8 {[%emt 0:00:18]} 25. Nxa6 {[%emt 0:01:42] White is weak on the dark squares} Ne5 {[%emt 0:01:19][%csl LRc4,LRf3][%cal Bd7e5,Be5f3,Bf3h4][%mdl 32]} 26. Qc3 {[%emt 0:01:22] [#]} Bb4 $1 {[%emt 0:00:33][%mdl 512] Black mates.} 27. Nxb4 {[%emt 0:01:55]} (27. Nc5 Nxf3+) 27... Rxc3 {[%emt 0:00:19]} 28. bxc3 {[%emt 0:00:06]} Nxf3+ {[%emt 0:00:18] Excellent horsemanship.} 29. Kf1 {[%emt 0:00:14]} Nxe4 {[%emt 0:00:07][%csl Ge4][%cal Re3f2]} 30. Nd3 {[%emt 0:00:18]} Ned2+ {[%emt 0:00:04]} 31. Kg2 {[%emt 0:00:16]} Nh4# {[%emt 0:00:01] Black took control after the opening. A superb game by McGowan.   Weighted Error Value: White=1.01/Black=0.00 (flawless)} 0-1

[Event "Oceania Zonal Open 2023"]
[Site "Melbourne"]
[Date "2023.01.24"]
[Round "3.1"]
[White "Kuybokarov, Temur"]
[Black "Soo, Kai Jie"]
[Result "1-0"]
[ECO "C18"]
[WhiteElo "2558"]
[BlackElo "2046"]
[Annotator "TA"]
[PlyCount "91"]
[EventDate "2023.01.09"]
[EventType "swiss"]
[EventCountry "AUS"]
[SourceTitle "playchess.com"]
[Source "ChessBase"]
[SourceQuality "1"]
[TimeControl "5400+30"]

{[%evp 24,91,28,19,23,20,10,45,39,23,27,21,61,41,49,54,57,43,77,65,217,212,262,167,166,170,166,174,157,153,169,168,212,210,211,190,335,326,339,331,316,324,474,501,487,493,487,474,450,464,602,619,525,525,537,537,528,516,523,480,511,511,504,482,3833,2497,29988,29989,29989,29990]} 1. e4 {[%emt 0:00:07]} e6 {[%emt 0:00:07]} 2. d4 {[%emt 0:00:08]} d5 {[%emt 0:00:05]} 3. Nc3 {[%emt 0:00:10]} Bb4 {[%emt 0:00:13]} 4. e5 {[%emt 0:00:17]} c5 {[%emt 0:00:07]} 5. a3 {[%emt 0:00:25]} Bxc3+ {[%emt 0:00:05]} 6. bxc3 {[%emt 0:00:06]} Ne7 {[%emt 0:00:06]} 7. Qg4 {[%emt 0:00:27]} O-O {[%emt 0:00:09]} 8. Bd3 {[%emt 0:00:38]} f5 {[%emt 0:00:07]} 9. exf6 {[%emt 0:01:54]} Rxf6 {[%emt 0:00:08]} 10. Bg5 {[%emt 0:05:03]} Rf7 {[%emt 0:00:10]} 11. Qh5 {[%emt 0:02:45]} g6 {[%emt 0:00:38]} 12. Qd1 {[%emt 0:00:53]} Nbc6 {[%emt 0:00:08]} 13. Nf3 {[%emt 0:01:10]} Qa5 {[%emt 0:00:10] C18: French: 3 Nc3 Bb4: Main line: 7 h4 and 7 Qg4.} 14. Bd2 {[%emt 0:03:21] Inhibits e5.} c4 {[%emt 0:00:08]} 15. Be2 {[%emt 0:00:52]} Nf5 {[%emt 0:00:09] White is slightly better.} 16. O-O {[%emt 0:03:00]} Bd7 {[%emt 0:00:52] 16...Bd7 is better than 16...Nd6.} 17. Re1 {[%emt 0:09:49]} Nd6 {[%emt 0:01:20]} 18. Ng5 {[%emt 0:03:58] Dodges Ne4} Rf6 {[%emt 0:00:27]} 19. Bg4 {[%emt 0:00:38]} Re8 {[%emt 0:00:09]} 20. h4 {[%emt 0:04:53]} h6 {[%emt 0:12:55] [#]} 21. Nf3 $146 {[%emt 0:02:47] aiming for Ne5.} ({Predecessor:} 21. h5 hxg5 22. Bxg5 Ref8 23. Bxf6 Rxf6 24. Re3 Ne4 25. Qe1 gxh5 26. Bxh5 Qc7 27. Qe2 {½-½ Brookes,C (2056)-Tan,M (2400) Vlissingen HZ op 15th 2011 (2)}) 21... Ne4 $2 {[%emt 0:00:35] Loses the game.} ({Black should try} 21... Nf7 $14) 22. Bxh6 $18 {[%emt 0:03:14]} Nxc3 {[%emt 0:02:43]} 23. Qd2 {[%emt 0:02:44]} Ne4 {[%emt 0:00:10] Prevents Qg5} 24. Qxa5 {[%emt 0:00:47][%mdl 64] [#] Deflection} Nxa5 {[%emt 0:00:05] A dynamic duo of knights.} 25. Ne5 {[%emt 0:00:22] Dodges Nc6} Ba4 {[%emt 0:08:17]} 26. f3 $36 {[%emt 0:00:27][%mdl 2048] White is in control.} Kh7 {[%emt 0:00:24]} 27. Be3 {[%emt 0:15:34]} Nd6 {[%emt 0:00:35]} 28. c3 {[%emt 0:06:25]} Nb3 {[%emt 0:08:36]} 29. Ra2 {[%emt 0:01:48]} Nf7 {[%emt 0:18:09]} (29... Nb5 $142) 30. Bg5 {[%emt 0:07:01]} Nxg5 {[%emt 0:00:13]} 31. hxg5 {[%emt 0:00:05]} Rff8 {[%emt 0:00:41]} 32. g3 {[%emt 0:00:12] [#] Threatens to win with Rh2+.} Re7 {[%emt 0:01:42]} (32... Kg7 $142 33. Rh2 Rh8 34. Rxh8 Rxh8 35. Bxe6 Rd8) 33. Rh2+ {[%emt 0:01:04]} Kg7 {[%emt 0:00:07]} 34. Kf2 {[%emt 0:01:58] Strongly threatening Reh1.} Rg8 {[%emt 0:00:55]} 35. Reh1 {[%emt 0:00:21]} Kf8 {[%emt 0:00:36]} 36. Rh7 {[%emt 0:00:29]} Rxh7 {[%emt 0:03:00]} 37. Rxh7 {[%emt 0:00:05] Black must now prevent Rf7+.} Rg7 {[%emt 0:00:06] Dodges Rf7+} 38. Rxg7 {[%emt 0:03:28]} Kxg7 {[%emt 0:00:08]} 39. Bxe6 {[%emt 0:00:03][%mdl 4096] Endgame KBN-KBN} Bc6 {[%emt 0:00:07]} 40. f4 {[%emt 0:00:37][%cal Bf3f4,Bf4f5,Bf5f6][%mdl 32]} Nd2 {[%emt 0:01:08]} 41. Bf7 {[%emt 0:06:32]} Ne4+ {[%emt 0:03:43]} 42. Ke3 {[%emt 0:00:33]} Nxc3 {[%emt 0:00:32]} 43. Bxg6 {[%emt 0:00:14]} Na2 {[%emt 0:00:35]} (43... Kf8 $142 44. Bc2 Nb5) 44. f5 {[%emt 0:00:12] Threatening mate with f6+.} Ba4 {[%emt 0:00:54]} 45. f6+ {[%emt 0:00:08]} Kf8 {[%emt 0:00:30]} 46. Bh7 {[%emt 0:00:29] Weighted Error Value: White=0.05 (flawless) /Black=0.49} 1-0

[Event "Oceania Zonal Open 2023"]
[Site "Melbourne"]
[Date "2023.01.24"]
[Round "3.2"]
[White "Li, Jackie"]
[Black "Zhao, Zong-Yuan"]
[Result "0-1"]
[ECO "A63"]
[WhiteElo "2035"]
[BlackElo "2488"]
[Annotator "TA"]
[PlyCount "96"]
[EventDate "2023.01.09"]
[EventType "swiss"]
[EventCountry "AUS"]
[SourceTitle "playchess.com"]
[Source "ChessBase"]
[SourceQuality "1"]
[TimeControl "5400+30"]

{[%evp 21,96,29,35,30,31,0,10,20,23,17,23,0,20,22,45,-41,-23,-33,0,-12,0,0,14,7,16,0,15,45,27,-18,14,16,16,16,52,45,66,0,0,0,0,0,0,-96,-96,-96,-96,-94,-110,-968,-975,-864,-12,-721,-688,-29972,-29973,-29978,-29979,-29979,-29976,-29976,-29977,-29977,-29978,-29980,-29981,-29983,-29983,-29983,-29984,-29985,-29986,-29991,-29992,-29997,-29998]} 1. d4 {[%emt 0:04:44]} Nf6 {[%emt 0:00:09]} 2. c4 {[%emt 0:00:08]} e6 {[%emt 0:00:08]} 3. g3 {[%emt 0:00:08]} c5 {[%emt 0:01:08]} 4. d5 {[%emt 0:00:09]} exd5 {[%emt 0:00:03]} 5. cxd5 {[%emt 0:00:10]} d6 {[%emt 0:00:07]} 6. Nc3 {[%emt 0:00:13]} g6 {[%emt 0:00:03]} 7. Bg2 {[%emt 0:00:12]} Bg7 {[%emt 0:00:07]} 8. Nf3 {[%emt 0:00:09]} O-O {[%emt 0:00:05]} 9. O-O {[%emt 0:00:06]} a6 {[%emt 0:01:27]} 10. a4 {[%emt 0:00:11]} Nbd7 {[%emt 0:00:14]} 11. Bf4 {[%emt 0:00:24]} Qe7 {[%emt 0:01:16]} 12. Re1 {[%emt 0:01:03] now scores much better than the old 12.h3. A63: Modern Benoni: Fianchetto Variation: 9...Nbd7.} Ng4 {[%emt 0:03:18]} 13. Qc1 {[%emt 0:03:38]} Rb8 {[%emt 0:08:45] [#]} 14. Rb1 $146 {[%emt 0:08:12] The position is equal.} ({Predecessor:} 14. a5 b5 15. axb6 Rxb6 16. e4 Nde5 17. Nxe5 Nxe5 18. Qc2 g5 19. Bxe5 Bxe5 20. Ra2 {0-1 Vardakas,G (2135)-Brunello,S (2499) GRE-chT2 48th 2021 (5.6)}) 14... b6 {[%emt 0:15:30]} 15. h3 {[%emt 0:04:28]} Nge5 {[%emt 0:01:04]} 16. Bh6 {[%emt 0:03:36]} Bxh6 {[%emt 0:12:11]} 17. Qxh6 {[%emt 0:00:12]} f5 {[%emt 0:00:02]} 18. Nxe5 {[%emt 0:05:49]} (18. Ng5 $14) 18... Nxe5 $15 {[%emt 0:00:10]} 19. Qe3 {[%emt 0:09:33]} Qf6 {[%emt 0:07:27]} 20. f4 $1 {[%emt 0:09:30]} Nf7 {[%emt 0:00:24]} 21. Qd2 {[%emt 0:03:25]} Bd7 {[%emt 0:05:56]} 22. e4 {[%emt 0:08:53]} Rfe8 {[%emt 0:04:49]} 23. b3 {[%emt 0:15:48][%cal Bb2b3,Bb3b4][%mdl 32]} b5 {[%emt 0:03:25]} 24. axb5 {[%emt 0:01:17]} axb5 {[%emt 0:00:05]} 25. exf5 {[%emt 0:04:28]} gxf5 {[%emt 0:02:02]} 26. Rxe8+ {[%emt 0:03:39]} Rxe8 {[%emt 0:00:24]} 27. b4 {[%emt 0:03:05]} c4 {[%emt 0:11:44]} 28. Ra1 {[%emt 0:03:49]} h5 $1 {[%emt 0:02:27]} 29. h4 {[%emt 0:02:13]} (29. Ra7 $14 Re7 30. Bf3) 29... Nh6 {[%emt 0:01:57]} 30. Bf3 {[%emt 0:00:30]} Ng4 {[%emt 0:00:21]} 31. Bxg4 {[%emt 0:00:09]} fxg4 {[%emt 0:00:55]} 32. Re1 {[%emt 0:00:59]} (32. Ra7 $11 Bf5 33. Ra5 (33. Nxb5 Bd3 $11)) 32... Rxe1+ $17 {[%emt 0:05:22][%mdl 64] [#] Deflection. Black converts the advantage convincingly.} 33. Qxe1 {[%emt 0:00:05][%mdl 4096] Endgame KQB-KQN} Qd4+ {[%emt 0:00:04]} 34. Kh2 {[%emt 0:02:46]} Kf8 {[%emt 0:03:44] Black is more active.} 35. Ne4 $2 {[%emt 0:01:57][%mdl 8192]} (35. Kh1 $17) 35... Qxd5 $19 {[%emt 0:01:36] ( -> ...Bc6)} 36. Nf6 {[%emt 0:00:26]} Qe6 $2 {[%emt 0:01:29] [#]} (36... Qf5 $19 37. Nxd7+ Qxd7) 37. Nxd7+ {[%emt 0:01:39][%mdl 8192]} (37. Qxe6 $11 Bxe6 38. Ne4) 37... Qxd7 $11 {[%emt 0:00:02] KQ-KQ} 38. f5 {[%emt 0:00:28]} Qxf5 {[%emt 0:02:16] Black mates.} 39. Qf1 {[%emt 0:00:16]} Qf3 {[%emt 0:00:31]} 40. Qa1 {[%emt 0:01:07]} Qe2+ {[%emt 0:02:50]} 41. Kh1 {[%emt 0:00:32]} Qe5 {[%emt 0:01:33]} 42. Qa8+ {[%emt 0:00:44]} Ke7 {[%emt 0:00:08]} 43. Qa7+ {[%emt 0:00:29]} Ke6 {[%emt 0:00:21]} 44. Qf2 {[%emt 0:00:31]} Qe4+ {[%emt 0:01:33]} 45. Kh2 {[%emt 0:00:12]} c3 {[%emt 0:00:45][%cal Bc4c3,Bc3c2][%mdl 32]} 46. Qf8 {[%emt 0:00:39]} c2 {[%emt 0:02:13]} 47. Qf1 {[%emt 0:00:46]} Qe3 {[%emt 0:01:03]} 48. Qf8 {[%emt 0:00:24]} Qe2+ {[%emt 0:00:22] Weighted Error Value: White=0.58/Black=0.27 (precise)} 0-1

[Event "Oceania Zonal Open 2023"]
[Site "Melbourne"]
[Date "2023.01.24"]
[Round "3.3"]
[White "Sardana, Rishi"]
[Black "McNamara, Gary"]
[Result "1-0"]
[ECO "B07"]
[WhiteElo "2459"]
[BlackElo "2040"]
[Annotator "TA"]
[PlyCount "95"]
[EventDate "2023.01.09"]
[EventType "swiss"]
[EventCountry "AUS"]
[SourceTitle "playchess.com"]
[Source "ChessBase"]
[SourceQuality "1"]
[TimeControl "5400+30"]

{[%evp 15,95,24,28,11,39,41,45,35,43,35,41,39,35,24,42,40,70,58,43,52,63,28,37,25,43,36,80,75,77,85,83,40,130,116,165,160,226,215,201,100,100,109,102,105,133,115,115,106,104,94,102,82,85,79,86,78,89,71,95,34,140,134,202,125,342,320,296,295,392,375,1082,1069,1097,1041,1072,1076,1054,1043,1164,1150,1120,1100]} 1. e4 {[%emt 0:00:04]} g6 {[%emt 0:01:01]} 2. d4 {[%emt 0:00:07]} Bg7 {[%emt 0:00:14]} 3. Nf3 {[%emt 0:00:27]} d6 {[%emt 0:00:27]} 4. c3 {[%emt 0:00:13]} c6 {[%emt 0:05:15]} 5. Bd3 {[%emt 0:00:15]} Nf6 {[%emt 0:02:20]} 6. O-O {[%emt 0:00:18]} Nbd7 {[%emt 0:05:05]} 7. Re1 {[%emt 0:05:16]} e5 {[%emt 0:07:44]} 8. Nbd2 {[%emt 0:00:45] has lost popularity (8.Bg5).} O-O {[%emt 0:03:04]} 9. Nf1 {[%emt 0:03:02] B07: Pirc Defence: Miscellaneous Systems.} Qc7 {[%emt 0:03:57]} 10. Ng3 {[%emt 0:02:19]} a6 {[%emt 0:07:01]} 11. a4 {[%emt 0:03:41] White is slightly better.} b6 {[%emt 0:00:26]} 12. h3 {[%emt 0:09:05]} Bb7 {[%emt 0:02:03]} 13. Be3 {[%emt 0:01:10]} Rfe8 {[%emt 0:18:54]} 14. Qd2 {[%emt 0:09:17]} c5 {[%emt 0:05:13][%cal Bc6c5,Bc5c4][%mdl 32] [#]} 15. Bh6 $146 {[%emt 0:06:46]} ({Predecessor:} 15. dxe5 dxe5 16. Bh6 c4 17. Bc2 Rad8 18. Bxg7 Kxg7 19. Qg5 Ng8 20. Rad1 h6 21. Qe3 {0-1 Tuominen,T-Sorsa,N (2250) FIN-ch U18 Finland 1998 (3)}) 15... c4 {[%emt 0:09:07]} 16. Bc2 {[%emt 0:01:42][%cal Og3f5]} Bh8 {[%emt 0:04:01]} 17. Rad1 {[%emt 0:10:22]} b5 {[%emt 0:03:26]} 18. Bg5 {[%emt 0:15:49]} (18. dxe5 {seems wilder.} dxe5 19. Nf5 Nc5 20. Qd6) 18... Rad8 {[%emt 0:02:13]} 19. b4 {[%emt 0:02:43]} cxb3 $1 {[%emt 0:03:16]} 20. Bxb3 {[%emt 0:00:37]} Nb6 {[%emt 0:00:30]} 21. a5 {[%emt 0:09:46]} Nc4 {[%emt 0:02:38]} 22. Bxc4 {[%emt 0:00:17]} bxc4 {[%emt 0:00:34]} 23. Qa2 {[%emt 0:03:01]} Bg7 {[%emt 0:01:41] [#]} (23... exd4 $14 24. Rxd4 (24. Nxd4 Rc8 $15) 24... Rc8) 24. d5 $1 $16 {[%emt 0:01:09]} Rd7 {[%emt 0:07:11]} (24... Rb8 $16) 25. Rb1 $18 {[%emt 0:00:39]} Nxd5 {[%emt 0:00:52]} (25... Qc8 $16 26. Rb6 h6) 26. exd5 {[%emt 0:00:36]} Bxd5 {[%emt 0:00:13]} 27. Nd2 {[%emt 0:01:18]} (27. Rb6 $18 {has better winning chances.}) 27... h6 $16 {[%emt 0:01:21]} 28. Be3 {[%emt 0:01:09]} f5 {[%emt 0:00:36]} 29. Ngf1 {[%emt 0:01:03][%cal Bg3f1,Bf1e3,Be3c2,Bc2b4][%mdl 32]} Bf7 {[%emt 0:01:31]} 30. Bb6 {[%emt 0:00:56]} Qc6 {[%emt 0:00:14]} 31. Ne3 {[%emt 0:00:46]} d5 {[%emt 0:00:20]} 32. Nc2 {[%emt 0:01:18][%cal Of2f4]} f4 {[%emt 0:01:34]} 33. Nb4 {[%emt 0:01:00][%csl LRa6,LRc6]} Qc8 {[%emt 0:01:10]} 34. Qa4 {[%emt 0:00:40][%cal Ob4a6] Threatens to win with Nxa6!} Rd6 {[%emt 0:00:15]} 35. Rbd1 {[%emt 0:00:38][%cal Od2e4] Hoping for Ne4!} Bf8 {[%emt 0:01:07]} 36. Nf3 {[%emt 0:01:27]} Bg7 {[%emt 0:00:09]} 37. Rd2 {[%emt 0:01:32]} (37. Nh2 $16) 37... g5 {[%emt 0:00:40] [#]} ({Better is} 37... e4 $1 $14 38. Nd4 f3) 38. Qd1 $1 {[%emt 0:01:18][%cal Rb4d5]} g4 {[%emt 0:00:35]} (38... Qb7 $16 {might work better.} 39. Kh2 (39. Bc5 Rdd8 $16) 39... e4) 39. Nxd5 {[%emt 0:03:32]} Rxd5 {[%emt 0:01:05] Loses the game.} (39... gxf3 $16 40. Ne7+ {[%mdl 64] Discovered Attack} Rxe7 41. Rxd6 Qf5) 40. Rxd5 $18 {[%emt 0:00:07][%cal Bd2d5,Bd5c5,Bc5c7][%mdl 32]} gxf3 {[%emt 0:00:10]} 41. Rc5 {[%emt 0:00:54]} Qb7 {[%emt 0:00:57]} 42. Rc7 {[%emt 0:01:04]} ({Weaker is} 42. Qxf3 Qxf3 43. gxf3 Bh5 44. Rxc4 Re6 $18) (42. gxf3 Be6 43. Rc7 Qd5 $18) 42... Qa8 {[%emt 0:00:27]} (42... Qd5 43. Qxf3 Qxf3 44. gxf3 Bd5) 43. Qd7 {[%emt 0:00:42] White is clearly winning.} Qd5 {[%emt 0:00:50]} 44. Rd1 {[%emt 0:00:23]} Qe6 {[%emt 0:00:15]} 45. Rd6 {[%emt 0:00:07]} Qxd7 {[%emt 0:00:36]} 46. Rdxd7 {[%emt 0:00:06][%cal Bd6d7,Bd7f7,Bf7e7][%mdl 32]} e4 {[%emt 0:00:41]} 47. Rxf7 {[%emt 0:00:09]} Be5 {[%emt 0:00:27]} 48. Rfe7 {[%emt 0:00:23] Weighted Error Value: White=0.15 (very precise) /Black=0.31} 1-0